[Event "Svetozar Gligoric Masters 2022"]
[Site "Belgrade"]
[Date "2022.07.20"]
[Round "5.13"]
[White "Samant Aditya S"]
[Black "Vaibhav Jayant Raut"]
[Result "1-0"]
[ECO "B41"]
[WhiteElo "2431"]
[BlackElo "2169"]
[Annotator "TA"]
[PlyCount "81"]
[EventDate "2022.07.18"]
[EventCountry "SRB"]
[SourceTitle "playchess.com"]
[Source "ChessBase"]
[SourceQuality "1"]
[TimeControl "40/5400+30:900+30"]

{[%evp 14,81,35,47,75,46,72,75,97,96,80,77,116,81,112,80,87,81,75,85,126,158,146,14,13,16,24,-14,308,270,306,278,282,285,247,199,222,222,232,212,222,226,222,188,225,224,617,653,620,214,208,212,205,215,177,195,185,181,165,131,247,170,263,270,256,254,346,330,1147,1118]} 1. e4 c5 2. Nf3 e6 3. d4 cxd4 4. Nxd4 a6 5. c4 Nf6 6. Nc3 Qc7 7. Be2 Bb4 8. Nc2 Be7 {B41: Sicilian: Kan Variation: 5 c4.} 9. Be3 $1 {[%mdl 4] is more profitable than 9.0-0 at the moment.} d6 10. g4 {[#]} h5 $146 {White is better.} ({Predecessor:} 10... Nc6 11. g5 Nd7 12. h4 b6 13. h5 Bb7 14. h6 g6 15. f4 O-O 16. Qd2 Na5 {0-1 (57) Sheng,J (2453)-Akopian,V (2638) Philadelphia 2021}) 11. gxh5 b6 12. Rg1 Rh7 13. Nd4 {[%cal Oh5h6]} Bb7 14. h6 gxh6 15. Bh5 d5 (15... Qxc4 $2 16. Rc1 Nbd7 17. Nd5 $1 {[%mdl 512]} Qxa2 18. Nxe6 Bxd5 19. exd5 $18 (19. Nc7+ Kd8 $18)) 16. Rg3 dxe4 17. Nxe6 $1 {White is much more active.} Qe5 {[#]} 18. Ng7+ (18. Nf4 $6 Nbd7 $16) ({White should try} 18. Nd5 $1 $16 {[%cal Rd5f6] Threatening mate with Nxf6+.} Bxd5 19. cxd5) 18... Kf8 $1 $11 (18... Rxg7 19. Rxg7 Qxh5 20. Rg8+ $1 Bf8 21. Qxh5 Nxh5 22. Rh8 $15 (22. Bxb6 Nd7 $17)) 19. Bd4 Qf4 20. Ne2 Qd6 {[%mdl 8192] Black cannot hold the game after this.} (20... Qc7 $1 $11 {and Black has nothing to worry.} 21. Bxf6 Bxf6) 21. Nf5 $18 Qe6 22. Nxe7 {Chess con chili.} Qxe7 (22... Nxh5 $2 23. Rg8+ Kxe7 24. Bc5+ $1 {[%mdl 512]} Kf6 25. Qd8+ Kf5 26. Nd4+ Ke5 27. Qc7+ Kf6 28. Nxe6 $18) 23. Nf4 Nbd7 24. Qe2 Ne5 25. O-O-O Rc8 26. Kb1 (26. Bxb6 Nxc4 27. Rd8+ Rxd8 $11) 26... Rg7 27. Rxg7 Kxg7 28. Rg1+ Kh7 29. Qe3 {Hoping for Bxe5.} Rf8 $2 (29... Rg8 30. Rxg8 Nxg8) 30. Bxe5 (30. Qg3 $2 Rg8 31. Bg6+ fxg6 $19) 30... Qxe5 {[#]} 31. Bg6+ {[%mdl 512]} fxg6 32. Nxg6 Qd6 33. Nxf8+ Qxf8 34. Qxb6 Qf7 35. Qd6 $40 {[%mdl 128] Black is in trouble.} Bc8 36. Ka1 Be6 (36... Ng4 $16 37. c5 Be6) 37. c5 {Threatens to win with Qe5.} (37. Qxa6 Bxc4 38. Qc8 Nd7 $14) 37... Nd5 (37... Ne8 {was worth a try.} 38. Qc6 (38. Qxa6 Qxf2 39. Rf1 Qg2 $16) 38... Bd5 39. Qxa6 Ng7) 38. Qe5 ({Not} 38. Qxa6 Nb4 39. Qa8 Nc2+ 40. Kb1 Nb4 $11) 38... Bf5 39. a3 {[%cal Og1g7] Inhibits Nb4. And now Rg7+! would win.} ({And not} 39. Rg7+ Qxg7 40. Qxf5+ Qg6 41. Qd7+ Kh8 $15) 39... Bg6 40. Rd1 Nf4 (40... e3) 41. Rd8 {Weighted Error Value: White=0.33/Black=0.47} 1-0

[Event "Svetozar Gligoric Masters 2022"]
[Site "Belgrade"]
[Date "2022.07.20"]
[Round "5.14"]
[White "Erdogmus, Yagiz Kaan"]
[Black "Petrovic, Aleksa"]
[Result "1-0"]
[ECO "C06"]
[WhiteElo "2373"]
[BlackElo "2230"]
[Annotator "TA"]
[PlyCount "51"]
[EventDate "2022.07.18"]
[EventCountry "SRB"]
[SourceTitle "playchess.com"]
[Source "ChessBase"]
[SourceQuality "1"]
[TimeControl "40/5400+30:900+30"]

{[%evp 15,51,4,18,-3,53,36,58,60,58,63,107,107,149,147,191,190,298,289,293,292,287,270,316,327,325,330,413,397,395,388,933,924,946,912,877,869,955,604]} 1. e4 e6 2. d4 d5 3. Nd2 Be7 4. Ngf3 Nf6 5. e5 Nfd7 6. Bd3 c5 7. c3 Nc6 8. O-O a5 9. Re1 {9.a4 might become the main line. C06: French Tarrasch: 3...Nf6 4 e5 Nfd7 5 Bd3 main lines.} a4 ({Black should play} 9... cxd4 $11 10. cxd4 g5) 10. Nf1 $14 c4 11. Bc2 {White is slightly better.} b5 {[#]} 12. a3 $146 ({Predecessor:} 12. Ng3 h5 13. Ne2 Nf8 14. Be3 Bd7 15. a3 Na5 16. Qd2 Nb3 17. Bxb3 axb3 18. Bg5 {½-½ (63) Degraeve,J (2523)-Apicella,M (2521) Pau 2008}) 12... Qc7 13. Ng5 {[%cal Bf3g5,Bg5h3,Bh3f4,Bf4e6,Be6g7,Bg7f5][%mdl 32]} g6 14. Qf3 Nd8 {[#]} 15. h4 $1 {[%cal Bh2h4,Bh4h5][%mdl 32]} Bf8 (15... Bxg5 $142 16. Bxg5 h6) 16. h5 $18 Bg7 (16... h6 $2 {[#]} 17. Nxf7 $1 Nxf7 18. hxg6 $18) 17. Ne3 h6 18. Nh3 ({Less strong is} 18. Nxf7 Nxf7 19. hxg6 Ng5 $16) 18... g5 19. Qg3 Nc6 20. f4 {[%cal Bf2f4,Bf4g5][%mdl 32]} Bb7 21. fxg5 O-O-O 22. Ng4 f6 $2 (22... Rdg8 23. Qh2 Kb8) 23. Nf4 {White is clearly winning.} fxe5 24. Nxe6 Qb6 25. Nxg7 exd4 26. Nf5 {White took control after the opening.  Weighted Error Value: White=0.01 (flawless) /Black=0.36} 1-0

[Event "Svetozar Gligoric Masters 2022"]
[Site "Belgrade"]
[Date "2022.07.20"]
[Round "5.17"]
[White "Chen, Jonathan"]
[Black "Shahil Dey"]
[Result "0-1"]
[ECO "D53"]
[WhiteElo "2226"]
[BlackElo "2402"]
[Annotator "TA"]
[PlyCount "108"]
[EventDate "2022.07.18"]
[EventCountry "SRB"]
[SourceTitle "playchess.com"]
[Source "ChessBase"]
[SourceQuality "1"]
[TimeControl "40/5400+30:900+30"]

{[%evp 17,108,22,24,6,9,7,18,22,30,0,15,0,17,-24,0,0,0,0,0,0,0,0,0,0,0,-51,-56,-58,-16,-97,-106,-94,-102,-81,-89,-81,-83,-96,-97,-101,-87,-184,-102,-82,-97,-97,-28,-22,-37,-28,-22,-38,-30,-28,0,0,0,0,0,0,0,0,-8,-201,-201,-12824,-12824,-8285,-6395,-5297,-2482,-12836,-12836,-12837,-12837,-12837,-12838,-12838,-12839,-12838,-12838,-12842,-12842,-29988,-29989,-29990,-29991,-29991,-29991,-29991,-29992,-29994,-29992]} 1. d4 Nf6 2. Nf3 d5 3. c4 c6 4. Nc3 e6 5. Bg5 h6 6. Bh4 Be7 7. e3 Nbd7 8. Bd3 dxc4 9. Bxc4 b5 10. Bd3 {D53: Queen's Gambit Declined: 4 Bg5 Be7: Early deviations.} a6 {has lost popularity (10...Bb7).} 11. a4 {[%cal Ra4b5]} b4 12. Bxf6 {The position is equal.} gxf6 {[#]} 13. Ne2 $146 ({Predecessor:} 13. Ne4 f5 14. Ng3 h5 15. e4 fxe4 16. Bxe4 Bb7 17. O-O h4 18. Ne2 Nf6 19. Nd2 {0-1 (35) Kotanjian,T (2500)-Hayrapetyan,H (2486) Yerevan 2013}) 13... Bb7 14. Ng3 Qa5 15. b3 Rd8 16. Qc2 f5 17. e4 $1 {[%cal Re4f5]} f4 18. Ne2 c5 19. d5 exd5 20. exd5 Qc7 21. d6 (21. O-O $11) 21... Bxd6 $15 {A strong pair of Bishops.} 22. Be4 Ne5 {Strongly threatening ...c4.} 23. Nxe5 (23. O-O-O $11) 23... Bxe5 24. Rc1 {[%cal Ba1c1,Bc1c4,Bc4f4][%mdl 32]} Bxe4 {Black is more active.} 25. Qxe4 O-O 26. O-O Rfe8 27. Qf3 Re6 28. Rc4 Qc6 29. Qh3 (29. Qxc6 $17 {is a better defense.} Rxc6 30. Nxf4) 29... Rg6 (29... Rf6 $19 30. f3 Rd2) 30. Nxf4 $17 Bxf4 31. Rxf4 {[#]} Rd3 $1 32. g3 $11 {[%cal Of4f7]} Qe6 33. Qxe6 Rxe6 $15 {[%mdl 4096] Endgame KRR-KRR} 34. Rb1 Rc3 35. Kg2 Rd6 36. Rf3 Rdd3 37. Rxd3 Rxd3 $11 {KR-KR} 38. Kf1 $1 Kg7 {...Rc3 is the strong threat.} 39. Ke2 Rc3 {And now ...Kf6 would win.} 40. Kd2 $2 {White does not recover from this.} (40. a5 $1 $11) 40... Kf6 $1 $19 41. Rc1 $2 (41. f4) 41... Rxc1 $1 42. Kxc1 {KP-KP} Ke5 43. Kd2 Ke4 $1 44. a5 {[#]} h5 $1 45. Ke2 Kd4 46. Kd2 c4 47. bxc4 Kxc4 48. Kc2 Kb5 49. h4 {[#]} f5 $1 {[%cal Bf7f5,Bf5g4][%mdl 32]} 50. f4 Kc4 {Black mates.} 51. Kd2 b3 52. g4 fxg4 53. f5 b2 54. Kc2 b1=Q+ {Weighted Error Value: White=0.56/Black=0.07 (flawless)} 0-1

[Event "Svetozar Gligoric Masters 2022"]
[Site "Belgrade"]
[Date "2022.07.20"]
[Round "5.19"]
[White "Chitlange Sakshi"]
[Black "Brilej, Jaka"]
[Result "1/2-1/2"]
[ECO "D23"]
[WhiteElo "2216"]
[BlackElo "2364"]
[Annotator "TA"]
[PlyCount "86"]
[EventDate "2022.07.18"]
[EventCountry "SRB"]
[SourceTitle "playchess.com"]
[Source "ChessBase"]
[SourceQuality "1"]
[TimeControl "40/5400+30:900+30"]

{[%evp 20,86,9,0,4,10,12,4,45,34,16,0,0,0,0,-10,34,26,24,18,93,73,66,38,84,77,97,74,72,70,73,58,64,39,40,35,37,41,33,9,75,19,51,29,31,0,32,18,39,6,50,26,26,26,32,21,34,33,83,96,100,40,185,0,94,0,188,0,104]} 1. d4 d5 2. c4 c6 3. Nf3 Nf6 4. Qc2 dxc4 5. Qxc4 Bf5 6. g3 e6 7. Bg2 Be7 8. O-O O-O 9. Nc3 Nbd7 10. Re1 Ne4 {10...Bg6 is not played anymore.} 11. Bf4 Nxc3 {D23: Queen's Gambit Accepted: 3 Nf3 Nf6 sidelines.} 12. bxc3 {[%cal Bb2c3,Bc3c4,Bc4c5][%mdl 32]} Be4 13. Qb3 {[#]} Qc8 $146 ({Predecessor:} 13... c5 14. Ne5 Bxg2 15. Kxg2 Nxe5 16. Bxe5 Qd7 17. e4 b5 18. Rad1 c4 19. Qc2 Rfc8 {0-1 (52) Brunello,S (2587)-Kobalia,M (2666) Plovdiv 2012}) 14. Nd2 Bd5 15. Qb2 {e4 is the strong threat.} Bxg2 16. Kxg2 b5 17. c4 a6 (17... c5 {with more complications.} 18. Rad1 cxd4 19. Qxd4 a6) 18. e4 Qb7 19. Rab1 Nb6 (19... Rfe8 $11 {keeps the balance.}) 20. Qc2 Rfd8 21. Be3 (21. c5 $5 {[%cal Rc5b6]} Nd7 22. Bd6 $16) 21... Rac8 (21... Nd7 $14) 22. c5 $16 Na8 23. Nc4 Qd7 24. Ne5 Qe8 25. Red1 {0x0.0005eae539efdp-1022s more active pieces.} Nc7 26. Rd2 a5 27. a3 f6 28. Nf3 Rd7 29. h4 Bf8 {[#]} (29... a4 $11) 30. Rbd1 (30. a4 $1 $16) 30... g6 31. Qc3 a4 32. Ne1 Bg7 33. Nc2 Na6 34. f3 h5 35. Rd3 Qd8 36. Bf4 Bf8 37. R3d2 Kh7 38. Kh1 Bh6 (38... Qe7 $14) 39. Bxh6 Kxh6 40. Ne3 (40. g4 $16) 40... Nc7 {[#]} (40... Kh7 $14) 41. Nc2 ({White should try} 41. g4 $1 $18) 41... Na6 $1 42. Ne3 (42. g4 $16) 42... Nc7 $1 $18 43. Nc2 (43. g4 $18) 43... Na6 $1 {Weighted Error Value: White=0.30/Black=0.22 (precise)} 1/2-1/2

[Event "Svetozar Gligoric Masters 2022"]
[Site "Belgrade"]
[Date "2022.07.20"]
[Round "5.22"]
[White "Veselov, Yaroslav"]
[Black "Sharan, Rao"]
[Result "0-1"]
[ECO "E14"]
[WhiteElo "2206"]
[BlackElo "2342"]
[Annotator "TA"]
[PlyCount "109"]
[EventDate "2022.07.18"]
[EventCountry "SRB"]
[SourceTitle "playchess.com"]
[Source "ChessBase"]
[SourceQuality "1"]
[TimeControl "40/5400+30:900+30"]

{[%evp 24,109,18,25,19,21,24,0,0,0,0,0,0,-11,-11,-11,-7,0,0,-27,-12,-10,-22,-54,-43,-80,-24,-10,0,-47,-54,-48,-52,-50,-59,-48,-58,-37,83,85,83,87,90,91,96,88,100,99,135,49,156,139,151,150,150,150,151,132,133,127,137,152,323,323,323,323,323,297,282,282,275,275,691,272,556,272,1077,300,823,643,922,898,892,982,1052,971,747,649]} 1. d4 d5 2. c4 e6 3. Nf3 Nf6 4. e3 Be7 5. b3 b6 6. Bd3 Bb7 7. O-O O-O 8. Bb2 Nbd7 9. Nc3 c5 10. cxd5 Nxd5 11. Nxd5 Bxd5 12. Qe2 cxd4 13. Nxd4 Bf6 {E14: Queen's Indian: Classical Variation (4 e3).} 14. Rac1 Nc5 15. Bb1 g6 {The position is equal.} 16. Rfd1 Qe7 17. e4 Bb7 18. b4 Na4 {[#]} 19. Ba1 $146 ({Don't play} 19. Nc6 Bxc6 20. Bxf6 Qxf6 $17) ({Predecessor:} 19. Nc6 Bxc6 20. Bxf6 Qxf6 21. e5 Qe7 22. Rxc6 Qxb4 23. Qf3 Nc5 24. Rcd6 Rac8 25. R6d4 {1-0 (35) Brazda,A (1765)-Nyvlt,O (1935) Nachod 2003}) 19... a5 (19... Qxb4 $2 20. Rc4 (20. Nc6 Bxc6 21. Bxf6 Rfc8 $11) 20... Ba6 21. Rxb4 $18) 20. b5 Rac8 21. Rc4 Rxc4 22. Qxc4 Nc5 23. f3 Rd8 {Threatens to win with ...e5.} 24. Bc2 a4 (24... Rc8 $17) 25. Bc3 $11 Bg7 26. Ne2 (26. Be1 $11) 26... Rxd1+ $15 27. Bxd1 Qd7 28. Bc2 Bxc3 29. Nxc3 Qd2 30. Nxa4 {[#]} Qe3+ (30... Bd5 $1 $15 {stays ahead.} 31. exd5 exd5) 31. Kf1 $16 {Black must now prevent Nxc5.} Qc1+ 32. Kf2 $1 Nxa4 33. Qxa4 {[%mdl 4096] Endgame KQB-KQB} Qd2+ 34. Kf1 Qc1+ 35. Bd1 f5 36. Qc2 (36. exf5 $16 gxf5 37. Qd4) 36... Qf4 ({Better is} 36... Qa1 $14) 37. Qc4 $36 {[%mdl 2048] White is on the roll.} Qd6 38. Bb3 Kf7 39. exf5 gxf5 40. Qh4 Qd3+ 41. Kf2 Qd2+ 42. Kg3 h6 {This costs Black the game.} (42... Qe1+ $16 {might work better.} 43. Kh3 Qxh4+ 44. Kxh4 Kf6) 43. Qf4 $18 Qxf4+ 44. Kxf4 {And now Ke5 would win. KB-KB} Kf6 45. g3 e5+ 46. Ke3 Kg5 47. Bc2 Bd5 $2 (47... Kf6 48. a4 Ba8) 48. a4 $2 (48. h4+ Kf6 49. a4) 48... Kf6 $2 (48... Bb7 49. h4+ Kf6) 49. h4 (49. g4 $142 f4+ 50. Ke2) 49... Be6 (49... Bb7 50. g4 e4 51. fxe4 fxg4) 50. Bd1 $2 (50. a5) 50... Bc4 $2 (50... Bd7 51. f4 e4) 51. g4 {White is clearly winning.} f4+ {[#]} 52. Kf2 $1 Ke6 {[#]} 53. Bc2 $1 Kd6 54. h5 Ke6 55. Bf5+ {[%mdl 32768] Weighted Error Value: White=0.45/Black=0.45. Loss on time!?} 0-1

[Event "Svetozar Gligoric Masters 2022"]
[Site "Belgrade"]
[Date "2022.07.20"]
[Round "5.23"]
[White "Ilijic, Mihajilo"]
[Black "Ozer, Omer Faruk"]
[Result "0-1"]
[ECO "C84"]
[WhiteElo "2167"]
[BlackElo "2317"]
[Annotator "TA"]
[PlyCount "54"]
[EventDate "2022.07.18"]
[EventCountry "SRB"]
[SourceTitle "playchess.com"]
[Source "ChessBase"]
[SourceQuality "1"]
[TimeControl "40/5400+30:900+30"]

{[%evp 13,54,3,4,0,0,0,22,-19,-25,-16,-30,-18,-24,-80,-96,-87,-68,-132,-133,-137,-137,-129,-131,-237,-206,-236,-205,-209,-199,-339,-321,-372,-356,-412,-381,-622,-623,-598,-600,-684,-568,-560,-535]} 1. e4 e5 2. Nf3 Nc6 3. Bb5 {[%cal Bf1b5,Bb5a4,Ba4b3][%mdl 32]} a6 4. Ba4 Nf6 5. O-O Be7 6. Nc3 b5 7. Bb3 d6 8. a3 {8.a4 is setting a new trend. C84: Closed Ruy Lopez: Unusual White 6th moves.} Bg4 9. h3 Bh5 10. d3 {The position is equal.} (10. g4 $5 {[%cal Rg4h5]} Bg6 11. d3 $14) 10... Nd4 11. g4 Nxb3 12. cxb3 Bg6 {[#]} 13. Ne2 $146 (13. b4 $11) ({Predecessor:} 13. Kh2 Nd7 14. Nd5 c6 15. Ne3 Nb6 16. Bd2 a5 17. Rc1 c5 18. b4 cxb4 19. axb4 {½-½ (29) Van Randtwijk,M (1665)-Janse,S Rijswijk 2014}) 13... h5 $17 14. g5 Nh7 {[%cal Re7g5,Bf6h7,Bh7f8,Bf8e6][%mdl 32]} 15. h4 ({White should play} 15. Qc2 $15) 15... f6 16. gxf6 Bxf6 17. Ng3 Bxh4 18. Kg2 {[#]} (18. Nxh4 $17 Qxh4 19. Kg2) 18... Bf6 $1 $19 19. Rh1 Nf8 20. Be3 Ne6 21. Ng1 (21. Nf5 $142) 21... h4 22. Qg4 Bf7 23. Nf3 Qd7 {[%cal Oe6f4] [#] Threatens to win with ...Nf4+!} 24. Nf5 $2 (24. Kf1) 24... Bh5 {Black is clearly winning.} 25. Qh3 g6 26. Nh6 Nf4+ 27. Bxf4 exf4 {Black took control after the opening.  Weighted Error Value: White=0.49/Black=0.08 (flawless)} 0-1

[Event "Svetozar Gligoric Masters 2022"]
[Site "Belgrade"]
[Date "2022.07.21"]
[Round "6.1"]
[White "Predke, Alexandr"]
[Black "Neelash Saha"]
[Result "1-0"]
[ECO "B90"]
[WhiteElo "2688"]
[BlackElo "2446"]
[Annotator "TA"]
[PlyCount "83"]
[EventDate "2022.07.18"]
[EventCountry "SRB"]
[SourceTitle "playchess.com"]
[Source "ChessBase"]
[SourceQuality "1"]
[TimeControl "40/5400+30:900+30"]

{[%evp 21,83,21,0,0,0,6,0,0,0,0,0,0,0,-6,-6,-10,-6,0,0,0,58,10,61,62,90,70,75,11,95,104,92,64,64,61,59,52,111,83,107,61,172,134,168,170,297,298,304,289,589,575,1164,1057,1645,1525,1849,1734,1811,1694,1790,1727,1568,1739,1928,1807]} 1. e4 c5 2. Nf3 d6 3. d4 cxd4 4. Nxd4 Nf6 5. Nc3 a6 6. f3 e5 7. Nb3 Be7 8. Be3 Be6 9. Qd2 h5 10. O-O-O Nbd7 11. Kb1 Rc8 {is recently more successful than 11...b5.} 12. Nd5 {B90: Sicilian Najdorf: Unusual White 6th moves, 6 Be3 Ng4 and 6 Be3 e5.} Nxd5 13. exd5 Bf5 14. Bd3 {The position is equal.} Bxd3 15. Qxd3 Bg5 16. Bf2 Qc7 17. h4 Bh6 18. Rhe1 O-O 19. g4 {aiming for g5.} Bf4 {[#]} 20. c3 $146 ({Predecessor:} 20. Nd2 Nf6 21. g5 Nd7 22. Ne4 f5 23. gxf6 Nxf6 24. Ng5 {½-½ (24) Soudny,J (2240)-Jerabek,Z (2255) ICCF email 2003}) 20... a5 (20... hxg4 $11 21. fxg4 Nf6) 21. Qb5 (21. gxh5 $14 {deserves consideration.} a4 22. Nc1) 21... b6 (21... hxg4 $11 22. fxg4 b6) 22. gxh5 $14 Rfd8 23. Re4 {White is more active.} Nc5 24. Rc4 (24. Nxc5 $16 bxc5 25. Rg1) 24... Qd7 {[#]} (24... Ra8 $11) 25. Qxd7 $1 $16 Rxd7 26. Nxc5 (26. Kc2 {with more complications.} f6 27. a4 Rb8 28. Nxc5 bxc5 29. b4) 26... bxc5 27. Ra4 Ra8 28. Kc2 Rb7 ({Better is} 28... Kh7 $14) 29. Rb1 Kh7 30. a3 {[%cal Ba2a3,Ba3b4,Bb4b5,Bb5b6,Bb6b7][%mdl 32] Black must now prevent b4.} Rba7 (30... Rc7 $14) 31. Kd3 Kh6 {[#]} 32. b4 $1 axb4 (32... Rb7 {was worth a try.} 33. Rg1 f5) 33. Rxa7 $18 Rxa7 34. axb4 {[%mdl 4096] Endgame KRB-KRB} Ra2 $2 {[#]} (34... Rb7 35. b5 Rb6) 35. b5 $1 {White is clearly winning.} c4+ (35... Kxh5 36. b6) 36. Kxc4 Rxf2 {KRB-KR} 37. b6 Be3 38. b7 Ba7 39. Ra1 Rb2 40. Rxa7 Kxh5 41. Kd3 f5 42. c4 {Weighted Error Value: White=0.12 (very precise) /Black=0.49} 1-0

[Event "Svetozar Gligoric Masters 2022"]
[Site "Belgrade"]
[Date "2022.07.21"]
[Round "6.2"]
[White "Harikrishnan.A.Ra"]
[Black "Koustav Chatterjee"]
[Result "0-1"]
[ECO "D38"]
[WhiteElo "2396"]
[BlackElo "2485"]
[Annotator "TA"]
[PlyCount "85"]
[EventDate "2022.07.18"]
[EventCountry "SRB"]
[SourceTitle "playchess.com"]
[Source "ChessBase"]
[SourceQuality "1"]
[TimeControl "40/5400+30:900+30"]

{[%evp 12,85,9,9,23,32,28,38,30,28,15,16,17,14,33,9,13,0,12,19,27,14,27,0,14,0,0,0,0,0,0,0,0,0,0,0,0,-17,0,-45,-35,-81,-80,-120,-111,-123,-119,-143,-135,-143,-143,-144,-143,-387,-359,-347,-303,-300,-302,-680,-677,-673,-662,-812,-775,-1254,-1198,-1173,-1093,-1412,-1413,-1327,-1342,-1213,-1200,-29973]} 1. d4 Nf6 2. c4 e6 3. Nf3 d5 4. Nc3 Bb4 5. cxd5 exd5 6. Bg5 h6 7. Bh4 Nbd7 {7...Bf5 is the modern continuation. D38: Queen's Gambit Declined: Ragozin Defence (4 Nf3 Bb4).} 8. Qc2 g5 9. Bg3 Ne4 {White is slightly better.} 10. Nd2 Nxg3 11. hxg3 Nb6 12. a3 Bf8 13. e3 c6 14. Bd3 Be6 15. b4 h5 {[#]} 16. Nb3 $146 ({Predecessor:} 16. Rb1 h4 17. Ne2 a6 18. Nb3 Bc8 19. Nc5 Qf6 20. gxh4 gxh4 21. a4 Be7 22. a5 {½-½ (29) Thompson,B (2413)-Necchi,S ICCF email 2017}) 16... Qf6 17. b5 h4 18. bxc6 bxc6 {White must now prevent ...hxg3.} 19. gxh4 (19. Ne2 {with more complications.} hxg3 20. Qxc6+ Kd8 21. Rxh8 gxf2+ 22. Kd2) 19... gxh4 20. Ne2 Rc8 21. Nf4 Bd6 {[%cal Bf8d6,Bd6c7,Bc7b6][%mdl 32]} 22. Nxe6 fxe6 23. Qe2 Ke7 24. Kf1 Nd7 {[%cal Oh4h3]} 25. e4 Qg5 26. e5 (26. exd5 $15 {should be considered.} cxd5 27. Re1) 26... Bc7 $17 27. Qe3 Qxe3 {Active counter play!} 28. fxe3 c5 $1 29. Bb5 cxd4 ({Weaker is} 29... c4 30. Bxd7 Rcf8+ 31. Ke2 cxb3 32. Bb5 $15) 30. Bxd7 Kxd7 31. exd4 Bb6 32. Ra2 $2 {[#] Against Rc2. Loses the game.} (32. Rh3 $17) 32... Bxd4 $1 $19 {[%mdl 512]} 33. Re2 Bc3 {Strongly threatening ...Rb8.} 34. Rh3 Rh5 35. Nc1 $2 (35. Ree3 Bb2 36. g3) 35... Bxe5 {Black is clearly winning.} 36. Nd3 Bg3 {[#] aiming for ...Rf5+.} 37. Rb2 e5 {[%cal Be6e5,Be5e4][%mdl 32]} 38. Rb5 e4 39. Nc5+ Kc6 40. a4 Rf5+ 41. Ke2 Rf2+ 42. Ke3 Kd6 43. Kd4 {Weighted Error Value: White=0.56/Black=0.05 (flawless)} 0-1

[Event "Svetozar Gligoric Masters 2022"]
[Site "Belgrade"]
[Date "2022.07.21"]
[Round "6.3"]
[White "Petrov, Nikita"]
[Black "Stoyanov, Tsvetan"]
[Result "1/2-1/2"]
[ECO "A45"]
[WhiteElo "2558"]
[BlackElo "2450"]
[Annotator "TA"]
[PlyCount "57"]
[EventDate "2022.07.18"]
[EventCountry "SRB"]
[SourceTitle "playchess.com"]
[Source "ChessBase"]
[SourceQuality "1"]
[TimeControl "40/5400+30:900+30"]

{[%evp 9,57,24,28,20,21,14,27,33,41,21,42,0,0,0,7,6,18,6,4,0,0,0,0,-4,37,7,6,15,62,71,74,61,127,31,43,49,49,55,45,22,68,41,43,44,50,46,51,18,47,52]} 1. d4 Nf6 2. Bg5 Ne4 3. Bf4 d5 4. e3 Bf5 5. f3 Nd6 6. g4 {A45: Trompowsky Attack.} Bg6 7. h4 {[#] And now h5 would win.} f6 $146 (7... h5 $5 {[%cal Rh5g4]}) ({Predecessor:} 7... h5 8. g5 c6 9. Bd3 Bxd3 10. Qxd3 Qb6 11. Bxd6 exd6 12. Nc3 g6 13. O-O-O Qa6 {1-0 (43) Carlsen,M (2876)-Grandelius,N (2691) chess24.com INT 2020}) 8. Nc3 {White has an edge.} Bf7 9. e4 dxe4 {[%cal Oe7e5]} 10. fxe4 {With the idea e5.} ({Reject} 10. Nxe4 Nd7 $11) 10... e5 $1 11. dxe5 fxe5 12. Bxe5 Qe7 13. Bf4 $36 {[%mdl 2048] White has some pressure.} Nxe4 14. Nxe4 Qxe4+ 15. Qe2 Qxe2+ 16. Nxe2 {[%cal Bg1e2,Be2c3,Bc3b5][%mdl 32]} Nd7 17. O-O-O O-O-O 18. Nc3 {Black must now prevent Nb5.} Be6 (18... Bc5 $11 {was preferrable.}) 19. Nb5 $14 {[%csl LRa7,LRc7]} Bc5 20. Bxc7 Bxg4 {[#]} (20... Rde8 $1 $14) 21. Rd3 {White is more active.} (21. Bh3 $1 $16 Bxd1 22. Rxd1) 21... Rde8 22. Bg3 {[%cal Ob2b4] Against Re1+. Threatens to win with b4!} a6 23. Nd6+ (23. b4 {feels hotter.} Be3+ 24. Kb1 axb5 25. Rc3+) 23... Bxd6 24. Bxd6 {aiming for Rc3+.} (24. Rxd6 $5 {[%cal Rd6d4]} Re3 25. Bf2 $14) 24... Ne5 (24... Re1+ $11 {is more appropriate.} 25. Kd2 Rd1+ 26. Kc3 Re1) 25. Rd4 {Strongly threatening Bxe5.} h5 26. Bg2 Rh6 27. Rd5 Nc6 28. Rf1 Rhe6 {Hoping for ...Re1+.} 29. b3 {Weighted Error Value: White=0.17 (very precise) /Black=0.11 (very precise)} 1/2-1/2